bitfinex/quotes_ETHUSD_20220202
["timestamp","ask_amount","ask_price","bid_price","bid_amount"]
[1643826942390,4.75889622,2682.6,2682.2,0.00191204]
[1643826942391,2.11765667,2682.5,2682.2,0.00191204]
[1643826942588,4.30641634,2682.4,2682.2,0.00191204]
[1643826942786,8.49911003,2682.3,2682.0,28.13420491]
[1643826942987,1.76605667,2682.2,2682.0,12.28911433]
[1643826943189,10.01254039,2682.1,2682.0,1.76725507]
[1643826943389,11.90400011,2682.1,2680.7,0.00191204]
[1643826943588,0.99999999,2681.8,2680.7,0.00191204]
[1643826943792,0.99999999,2681.6,2680.7,0.00191204]
[1643826944036,0.99999999,2681.4,2680.4,0.18831204]
[1643826944231,5.34279229,2681.3,2680.4,0.00191204]
[1643826944430,0.77932892,2680.5,2680.4,0.00691204]
[1643826944631,2.95823583,2680.5,2679.6,0.00691204]
[1643826944832,2.95823583,2680.5,2679.7,0.1915]
[1643826944833,2.14559629,2680.4,2679.7,0.1915]
[1643826945031,2.14559629,2680.4,2679.8,0.005]
[1643826945230,2.14559629,2680.4,2679.9,0.005]
[1643826945431,2.68359629,2680.4,2680.0,0.005]
[1643826945633,4.36214206,2680.4,2680.1,0.005]
[1643826945834,6.60515378,2680.4,2680.3,0.90943637]
[1643826946034,2.95515378,2680.4,2680.3,0.90943637]
[1643826946234,0.538,2680.4,2680.3,0.90943637]
[1643826946635,0.538,2680.9,2680.3,0.90943637]
[1643826946837,0.538,2680.9,2680.4,0.00191204]
[1643826947138,0.00390811,2681.0,2680.4,0.00191204]
[1643826947336,0.18430879,2680.7,2680.4,0.00191204]
[1643826947537,0.72868095,2681.3,2680.5,0.00549146]
[1643826947791,0.19068095,2681.3,2680.5,0.00549146]
[1643826947988,0.1865,2681.3,2680.5,0.00549146]
[1643826948186,0.1865,2681.5,2680.5,0.19199146]
[1643826948390,0.1864,2681.9,2680.5,0.1865]
[1643826948585,0.1864,2681.9,2680.5,0.34047278]
[1643826948586,1.01481096,2681.5,2680.5,0.34047278]
[1643826948786,1.01481096,2681.5,2680.8,0.0054912]
[1643826948990,1.01481096,2681.5,2680.6,0.00191204]
[1643826949188,0.1864,2681.7,2680.6,0.00191204]
[1643826949388,5.18629056,2682.0,2680.7,0.1864]
[1643826949389,0.1864,2681.9,2680.7,0.1864]
[1643826949591,0.1864,2681.9,2680.8,0.00191204]
[1643826949788,0.1864,2681.9,2680.9,0.1864]
[1643826949988,0.00515037,2682.0,2680.9,0.1864]
[1643826950187,0.17265574,2682.0,2681.0,1.12217473]
[1643826950487,0.00515037,2682.0,2681.1,0.005]
[1643826950886,0.00515037,2682.0,2681.1,0.00691421]
[1643826951732,0.00515037,2682.0,2681.2,0.1864]
[1643826951931,0.00515037,2682.0,2681.3,0.00191421]
[1643826952330,0.00321428,2681.7,2681.3,0.00191421]
[1643826953534,0.00565977,2681.6,2681.3,0.00191421]
[1643826953733,0.00565977,2681.6,2681.1,0.19331421]
[1643826953933,0.00565977,2681.6,2681.1,0.18831421]
[1643826954143,0.00565977,2681.6,2681.1,0.1864]
[1643826954732,0.15767234,2681.3,2680.4,0.19331421]
[1643826954932,0.15767234,2681.3,2680.7,0.00566164]
[1643826955895,0.15767234,2681.3,2680.7,0.00566122]
[1643826957097,0.1864,2681.4,2680.7,0.00517062]
[1643826957299,0.87808608,2681.5,2680.7,0.00517062]
[1643826957700,1.3809572,2681.4,2680.7,0.00517062]
[1643826957898,1.48639999,2681.3,2680.7,0.00517062]
[1643826958098,0.99999999,2681.1,2680.7,0.00517062]
[1643826958297,0.6345,2681.0,2680.7,0.00517062]
[1643826958498,0.6345,2681.0,2680.7,0.00482676]
[1643826958499,0.18736262,2680.9,2680.7,0.00482676]
[1643826958698,5.27049396,2680.8,2680.7,0.00482676]
[1643826959339,5.27049396,2680.8,2680.4,0.00191421]
[1643826959537,5.27049396,2680.8,2680.6,0.00482649]
[1643826959538,0.448,2680.7,2680.6,0.00482649]
[1643826959739,2.63449999,2680.7,2680.6,0.00482649]
[1643826959940,4.45,2680.3,2680.0,0.01931043]
[1643826960138,0.6345,2680.2,2680.0,0.01931043]
[1643826960636,0.99999999,2680.1,2680.0,1.043e-05]
[1643826960837,5.59404999,2680.1,2679.1,0.1865]
[1643826961049,0.933599,2679.8,2679.1,0.1865]
[1643826961243,0.99999999,2679.6,2679.1,0.1865]
[1643826961442,0.448,2679.5,2679.1,0.1865]
[1643826961635,0.80733004,2679.5,2679.1,0.1865]
[1643826961838,0.67435655,2679.4,2679.1,0.1865]
[1643826962038,0.448,2679.3,2679.1,0.1865]
[1643826962682,0.4517952,2679.3,2679.1,0.1865]
[1643826962987,0.1865,2679.6,2679.1,0.1865]
[1643826963280,0.1865,2680.0,2679.1,0.1865]
[1643826963481,0.88679696,2679.8,2678.6,0.1865]
[1643826963883,0.88679696,2679.8,2678.7,0.04035806]
[1643826964081,2.27717879,2679.7,2678.8,0.1865]
[1643826964480,2.57717879,2679.7,2678.8,0.1865]
[1643826964684,0.15546676,2679.3,2678.7,0.1865]
[1643826964883,2.57717879,2679.7,2678.7,0.1865]
[1643826965685,2.57717879,2679.7,2679.1,0.00566678]
[1643826966082,0.1608865,2679.2,2679.1,0.00566678]
[1643826966281,2.0745577,2679.6,2679.1,0.00566678]
[1643826966528,1.18679696,2679.8,2679.1,0.00566678]
[1643826966927,1.18679696,2679.8,2679.0,0.00566682]
[1643826967431,2.08703939,2679.7,2679.0,0.00566682]
[1643826967628,2.38192567,2679.7,2679.0,0.00566682]
[1643826967828,2.08192567,2679.7,2679.0,0.00566682]
[1643826968029,2.08192567,2679.7,2679.3,0.00566659]
[1643826968229,0.16899333,2679.6,2679.3,0.00566659]
[1643826969029,0.16899333,2679.6,2678.7,0.1865]
[1643826969329,0.16899333,2679.6,2679.3,0.00547737]
[1643826970179,0.16899333,2679.6,2678.7,0.1865]
[1643826970479,0.16899333,2679.6,2678.8,0.00201697]
[1643826971078,0.77938783,2679.3,2678.8,0.00201697]
[1643826971280,0.16168571,2678.9,2678.8,0.00201697]
[1643826971481,0.77938783,2679.3,2678.7,0.1865]
[1643826971681,2.58240081,2679.7,2678.8,0.00201696]
[1643826971880,0.3,2679.8,2678.8,0.00201696]
[1643826972283,2.04484772,2679.7,2678.8,0.00201696]
[1643826972483,0.14354077,2678.9,2678.8,0.00201696]
[1643826972682,0.14354077,2678.9,2678.7,0.1865]
[1643826972883,0.14354077,2678.9,2678.8,0.0052524]
[1643826973934,0.14354077,2678.9,2678.7,0.1865]
[1643826974134,0.14354077,2678.9,2678.7,0.00559843]
[1643826975235,0.14354077,2678.9,2678.7,0.00559847]
[1643826976236,0.14354077,2678.9,2678.6,0.04092649]
[1643826976436,0.14354077,2678.9,2678.7,0.00514471]
[1643826976837,0.00514401,2679.0,2678.7,0.00514471]
[1643826977686,0.15090926,2678.9,2678.7,0.00510626]
[1643826978285,0.00510566,2679.0,2678.7,0.00510626]
[1643826978483,2.37722164,2679.7,2678.5,0.05430445]
[1643826978484,0.1865,2679.7,2678.5,0.05430445]
[1643826978684,0.1865,2679.7,2678.6,0.1865]
[1643826978984,0.0051056,2679.0,2678.7,0.00700961]
[1643826979382,0.0051056,2679.0,2678.7,0.0051063]
[1643826979782,0.18859423,2679.2,2678.6,0.22742649]
[1643826979985,0.00541014,2679.0,2678.7,0.00731409]
[1643826980783,0.00541014,2679.0,2678.7,0.00541078]
[1643826981083,0.00541014,2679.0,2678.6,0.22742649]
[1643826981284,0.00534661,2679.0,2678.7,0.00534724]
[1643826982241,0.18535805,2679.2,2678.8,0.1865]
[1643826982437,0.00534661,2679.0,2678.7,0.19375055]
[1643826983138,0.00534661,2679.0,2678.7,0.19184724]
[1643826983537,0.00534661,2679.0,2678.7,0.19734582]
[1643826983737,0.00534661,2679.0,2678.7,0.19199858]
[1643826983738,0.00549793,2679.0,2678.7,0.19199858]
[1643826984538,0.00549793,2679.0,2678.9,6.3620114]
[1643826984744,0.00549793,2679.0,2678.9,6.5485114]
[1643826984745,0.01073749,2679.0,2678.9,6.5485114]
[1643826984942,0.01073749,2679.0,2678.9,5.6865]
[1643826984943,3.956e-05,2679.0,2678.9,5.6865]
[1643826985200,3.956e-05,2679.0,2678.9,7.33371121]
[1643826985607,3.956e-05,2679.0,2678.9,8.56679121]
[1643826985801,1.58261817,2680.2,2679.0,0.00190296]
[1643826986001,0.70505973,2680.8,2680.0,3.80054611]
[1643826986002,1.58261817,2680.1,2680.0,3.80054611]
[1643826986201,0.1865,2680.7,2680.0,3.80054611]
[1643826986402,1.58239603,2680.6,2680.1,0.005]
[1643826986602,0.1865,2680.9,2680.1,0.005]
[1643826986603,0.17629701,2680.4,2680.1,0.9892]
[1643826987001,0.1865,2681.0,2680.1,0.99110296]
[1643826987203,0.00308699,2680.5,2680.1,1.62542296]
[1643826987403,0.00308699,2680.5,2680.2,0.005]
[1643826987606,8.699e-05,2680.5,2680.4,6.68632]
[1643826987802,8.699e-05,2680.5,2680.4,8.01101997]
[1643826988001,8.699e-05,2680.5,2680.4,8.75901997]
[1643826988702,2.1865,2681.9,2680.5,0.00190202]
[1643826988944,0.18769484,2681.5,2681.0,0.76046873]
[1643826989133,0.18769484,2681.5,2681.0,0.448]
[1643826989134,1.58182497,2681.4,2681.0,0.448]
[1643826989732,2.0,2681.9,2681.0,0.448]
[1643826989935,0.1864,2682.0,2681.0,0.44990202]
[1643826990133,1.58178775,2681.9,2681.0,0.44990202]
[1643826990740,0.18862668,2681.6,2681.0,0.44990202]
[1643826990933,1.58178775,2681.5,2681.0,0.44990202]
[1643826991533,0.19188075,2681.6,2681.0,0.44990202]
[1643826992133,0.1864,2681.9,2681.0,0.44990202]
[1643826992134,0.00566436,2681.4,2681.0,0.448]
[1643826993200,0.0056644,2681.3,2681.0,0.448]
[1643826993797,0.0056644,2681.3,2680.9,0.1914]
[1643826993798,1.5819927,2681.2,2680.9,0.1864]
[1643826994001,1.5819927,2681.2,2680.6,0.00690202]
[1643826994195,1.5819927,2681.2,2680.6,0.00190202]
[1643826994196,0.15592361,2681.1,2680.6,0.00190202]
[1643826994397,0.0056644,2681.3,2680.6,0.00190202]
[1643826994696,1.58207381,2681.2,2680.6,0.7643745]
[1643826994902,1.58207381,2681.2,2680.7,0.00190202]
[1643826995496,0.00566445,2681.3,2680.5,0.00190202]
[1643826995697,0.00289483,2681.1,2680.5,0.00190202]
[1643826996295,0.18445103,2680.9,2680.5,0.00690202]
[1643826997042,0.00511864,2680.9,2680.5,0.00690202]
[1643826998142,0.00511873,2680.8,2680.5,0.00690202]
[1643826999345,0.005251,2680.8,2680.5,0.00690202]
[1643826999543,0.005251,2680.8,2680.7,5.68632]
[1643826999743,0.005251,2680.8,2680.7,6.68632]
[1643827000587,0.00525956,2680.9,2680.8,5.65594005]
[1643827000787,0.00525956,2680.9,2680.8,6.84226005]
[1643827001387,0.00525956,2680.9,2680.8,7.14226005]
[1643827001589,5.956e-05,2680.9,2680.8,9.14240023]
[1643827001787,5.956e-05,2680.9,2680.8,9.59040023]
[1643827001987,0.00525948,2681.0,2680.8,7.43432]
[1643827002188,0.00525948,2681.0,2680.9,0.01423788]
[1643827002387,0.00525948,2681.0,2680.9,6.948]
[1643827002988,0.35536782,2682.3,2681.7,0.69548673]
[1643827003188,1.58172206,2682.2,2681.0,10.45520783]
[1643827003389,0.1864,2682.1,2681.1,1.005]
[1643827003587,1.58172206,2682.0,2681.2,0.005]
[1643827004037,1.58172206,2681.9,2681.2,0.005]
[1643827004239,0.1864,2682.2,2681.8,0.84989458]
[1643827004435,2.64695228,2683.1,2681.8,0.84989458]
[1643827004436,1.58166651,2682.1,2681.8,0.84989458]
[1643827004635,0.89145973,2682.7,2681.8,0.84989458]
[1643827004837,1.58164169,2682.6,2681.8,0.84989458]
[1643827005140,0.1864,2682.5,2681.8,0.84989458]
[1643827005436,1.58164169,2682.4,2681.8,0.84989458]
[1643827006035,1.58164169,2682.4,2681.5,0.18632]
[1643827006238,0.1864,2682.3,2681.2,0.005]
[1643827006442,0.1864,2682.3,2681.1,0.1914]
[1643827006443,1.58164169,2682.2,2681.1,0.1914]
[1643827006638,48.56612177,2682.0,2681.1,0.1914]
[1643827006839,4.27197482,2681.9,2681.1,0.1914]
[1643827007038,1.76959236,2681.8,2681.1,0.1914]
[1643827007238,3.63655972,2681.7,2681.2,0.73198628]
[1643827007539,0.18795067,2681.8,2681.1,0.1864]
[1643827007784,0.00565636,2681.6,2681.1,0.1864]
[1643827008582,0.18795067,2681.8,2681.1,0.93128546]
[1643827008784,1.58185272,2681.7,2681.1,0.93128546]
[1643827008987,0.0056565,2681.5,2681.1,0.74488546]
[1643827009784,0.1864,2681.9,2681.1,0.74488546]
[1643827009985,1.58182189,2681.8,2681.1,0.74488546]
[1643827010186,0.00565654,2681.4,2681.1,0.74488546]
[1643827010391,0.00565654,2681.4,2680.9,1.1864]
[1643827010786,0.00565654,2681.4,2681.1,0.87158709]
[1643827011438,0.00473158,2681.3,2681.1,0.87158709]
[1643827012234,0.00473158,2681.3,2681.2,3.7551501]
[1643827012436,0.00480446,2681.3,2681.2,3.7551501]
[1643827012836,0.00480446,2681.3,2681.2,4.7551501]
[1643827013035,0.00480446,2681.3,2681.2,4.6]
[1643827013437,0.00480446,2681.3,2681.1,0.87158709]
[1643827013638,0.00480442,2681.4,2681.1,0.87158709]
[1643827015195,0.00480442,2681.4,2681.1,1.07017496]
[1643827015491,0.00480442,2681.4,2681.1,1.05790709]
[1643827015695,0.00480442,2681.4,2681.3,4.25]
[1643827016092,0.00488307,2681.4,2681.3,5.25]
[1643827016291,0.00488307,2681.4,2681.3,4.25]
[1643827017092,0.00488307,2681.4,2681.3,5.25]
[1643827017292,0.00487232,2681.5,2681.3,5.25]
[1643827018093,0.00487232,2681.5,2681.4,4.15]
[1643827018299,0.00487232,2681.5,2681.4,3.15]
[1643827018495,0.00974461,2681.5,2681.4,3.15]
[1643827018695,0.00974461,2681.5,2681.1,0.87158709]
[1643827018696,0.00487229,2681.5,2681.1,0.87158709]
[1643827019738,55.44452169,2681.8,2681.4,3.17983175]
[1643827019938,1.58180092,2681.7,2681.4,3.17983175]
[1643827020741,1.58180092,2681.7,2681.4,3.0]
[1643827020938,1.58180092,2681.7,2681.6,0.86424352]
[1643827021144,0.00483491,2681.7,2681.6,0.86424352]
[1643827021741,1.58653542,2681.7,2681.6,5.29777786]
[1643827021941,0.00483491,2681.7,2681.6,6.29777786]
[1643827022340,0.00483483,2681.8,2681.6,6.29777786]
[1643827023387,0.00484348,2681.8,2681.6,6.29777786]
[1643827023988,0.00484348,2681.8,2681.7,6.68632]
[1643827024188,0.00484348,2681.8,2681.7,7.22332]
[1643827024589,0.89145973,2682.7,2681.7,7.22332]
[1643827024894,2.28658325,2682.6,2682.5,0.70644429]
[1643827025091,2.28658325,2682.6,2682.3,0.19126074]
[1643827025288,1.58151058,2682.5,2681.7,11.67392]
[1643827025491,1.58151058,2682.4,2681.8,1.0]
[1643827025692,2.38491719,2683.5,2681.9,0.7234]
[1643827025693,2.70505973,2683.0,2681.9,0.7234]
[1643827025890,1.58129682,2682.9,2681.9,1.0234]
[1643827026091,1.58129682,2682.9,2681.9,2.0234]
[1643827026289,1.58129682,2682.8,2681.9,2.0234]
[1643827026533,0.70505973,2683.0,2682.6,0.76642589]
[1643827026534,1.58129682,2682.7,2682.6,0.76642589]
[1643827026934,0.02105504,2682.9,2682.6,0.76642589]
[1643827027134,0.72611477,2682.9,2682.6,0.76642589]
[1643827027335,1.58129682,2682.8,2682.6,0.76642589]
[1643827028234,1.58665584,2682.8,2682.6,0.76642589]
[1643827028434,1.58665584,2682.8,2682.4,0.1862]
[1643827028435,1.58129682,2682.7,2682.4,0.1862]
[1643827028635,1.58129682,2682.7,2681.8,2.80857974]
[1643827028636,1.58129682,2682.6,2682.2,0.1862]
[1643827028836,3.58866179,2682.5,2681.9,1.3718]
[1643827029034,1.58129682,2682.4,2681.9,1.3718]
[1643827029234,2.28635655,2682.4,2681.7,0.15506921]
[1643827029634,1.58129682,2682.3,2682.1,0.92794297]
[1643827029835,1.58129682,2682.2,2682.1,0.92794297]
[1643827030033,0.70505973,2682.5,2682.1,0.92794297]
[1643827030292,0.6037169,2681.7,2681.6,2.4167]
[1643827030485,0.6037169,2681.7,2681.6,0.33864165]
[1643827030686,2.18501372,2681.7,2681.6,4.98204214]
[1643827031087,2.18501372,2681.7,2681.6,5.16836214]
[1643827031787,0.6037169,2681.7,2681.6,5.16836214]
[1643827032186,2.18502252,2681.7,2681.6,5.16836214]
[1643827032792,0.6037169,2681.7,2681.6,5.16836214]
[1643827033488,0.6037169,2681.7,2681.6,6.63744214]
[1643827033959,0.0050574,2681.8,2681.7,5.5]
[1643827034143,0.0050574,2681.8,2681.7,5.8]
[1643827034342,0.0050574,2681.8,2681.7,6.8]
[1643827034942,5.74e-05,2681.8,2681.7,6.8]
[1643827035144,5.74e-05,2681.8,2681.7,8.52332]
[1643827035352,0.91168164,2682.8,2681.8,7.36392]
[1643827035353,1.896e-05,2681.9,2681.8,7.36392]
[1643827035544,1.896e-05,2681.9,2681.8,7.90092]
[1643827035744,1.896e-05,2681.9,2681.8,8.90092]
[1643827036547,1.58107374,2682.6,2681.8,8.90092]
[1643827036746,1.58107374,2682.6,2681.9,1.18632]
[1643827036947,1.58107374,2682.6,2682.5,3.21235574]
[1643827037346,1.58107374,2682.6,2682.5,4.21235574]
[1643827037548,2.28613347,2682.8,2682.5,3.21235574]
[1643827037788,1.58107374,2682.7,2682.5,3.21235574]
[1643827037988,1.58107374,2682.6,2682.5,3.21235574]
[1643827038185,2.28613347,2682.8,2682.5,3.21235574]
[1643827038985,2.29178832,2682.8,2682.5,3.21235574]
[1643827039385,1.58672859,2682.8,2682.5,3.21235574]
[1643827039584,1.58107374,2682.7,2682.5,3.21235574]
[1643827040386,1.3823693,2682.7,2682.5,3.21235574]
[1643827040591,1.3823693,2682.7,2682.5,0.76235574]
[1643827040888,0.00565485,2682.8,2682.5,0.76235574]
[1643827041287,0.0056549,2682.7,2682.5,0.76235574]
[1643827041540,0.0056549,2682.7,2682.6,5.23632]
[1643827041746,0.0056549,2682.7,2682.6,6.23632]
[1643827041942,0.0056549,2682.7,2682.6,6.53632]
[1643827042543,0.00565485,2682.8,2682.6,6.53632]
[1643827042743,0.00565485,2682.8,2682.7,6.68632]
[1643827042945,0.00565485,2682.8,2682.7,8.15505]
[1643827043148,5.485e-05,2682.8,2682.7,8.15505]
[1643827043345,0.1862,2683.5,2682.8,5.5]
[1643827043545,0.70505973,2683.7,2682.9,0.72332]
[1643827043745,0.01889694,2683.3,2682.9,1.72332]
[1643827043947,0.01889694,2683.3,2683.1,1.86316]
[1643827044145,9.694e-05,2683.3,2683.2,6.77570233]
[1643827044346,9.694e-05,2683.3,2683.2,9.70727233]
[1643827044845,9.694e-05,2683.3,2683.2,8.64109]
[1643827045045,1.41025228,2684.6,2683.2,8.64109]
[1643827045046,0.89125973,2684.2,2683.2,9.78809]
[1643827045289,0.70505973,2684.2,2683.5,1.23148]
[1643827045491,0.70505973,2684.3,2683.6,0.72332]
[1643827045692,0.1862,2684.2,2683.6,0.72332]
[1643827045890,0.89125973,2684.2,2683.8,0.72607308]
[1643827046090,0.70505973,2684.1,2683.6,0.18632]
[1643827046290,0.70505973,2684.1,2683.4,3.0018]
[1643827046291,3.20134183,2684.0,2683.4,3.0136833]
[1643827046491,3.20134183,2684.0,2683.1,0.1862]
[1643827046492,0.70505973,2683.7,2683.1,0.1862]
[1643827046695,0.70505973,2683.4,2683.1,0.1862]
[1643827046890,2.20829492,2683.3,2683.1,0.1862]
[1643827047092,2.20829492,2683.3,2682.6,0.01240557]
[1643827047093,2.9791004,2683.3,2682.6,0.83010214]
[1643827047292,0.70505973,2683.2,2682.5,3.2989]
[1643827047490,2.33728514,2683.1,2682.5,3.2989]
[1643827047689,2.33728514,2683.1,2682.2,1.54636313]
[1643827048092,3.04234487,2683.1,2682.2,1.54636313]
[1643827048294,0.89125973,2683.1,2682.3,0.74453948]
[1643827048589,0.89125973,2683.1,2682.6,0.00564882]
[1643827049240,2.68420156,2683.0,2682.6,0.00564882]
[1643827049439,0.1862,2683.1,2682.6,0.00564882]
[1643827049440,0.89125973,2682.9,2682.6,0.00564882]
[1643827049641,3.15505973,2682.7,2682.6,0.00564882]
[1643827049840,3.34125973,2682.7,2682.6,0.00564882]
[1643827050041,3.34125973,2682.7,2681.5,3.9466]
[1643827050239,0.1864,2682.6,2681.8,0.83767542]
[1643827050439,0.89145973,2682.6,2681.8,0.67405017]
[1643827050640,1.42845973,2682.6,2681.5,3.9466]
[1643827050844,1.42845973,2682.6,2681.4,3.1671]
[1643827051242,0.89145973,2682.6,2681.4,3.35342]
[1643827051440,0.1864,2682.6,2681.4,4.28573]
[1643827051641,35.44569026,2682.5,2681.4,4.28573]
[1643827051843,2.16451993,2682.4,2681.4,4.28573]
[1643827052244,2.16451993,2682.4,2681.9,0.0054318]
[1643827052444,4.52836498,2682.4,2681.9,0.0054318]
[1643827053496,0.01368396,2682.3,2682.0,0.00543167]
[1643827054392,0.01368396,2682.3,2681.8,0.20170126]
[1643827054692,0.01368396,2682.3,2682.1,0.86857058]
[1643827055591,0.01368396,2682.3,2682.0,0.00543167]
[1643827055794,0.01368396,2682.3,2682.1,0.00554279]
[1643827055993,0.71874369,2682.3,2682.1,0.00554279]
[1643827056199,2.20224966,2682.2,2682.1,0.00554279]
[1643827056641,2.90730939,2682.2,2682.1,0.00554279]
[1643827056843,2.20224966,2682.2,2682.1,0.00554279]
[1643827057042,2.20224966,2682.2,2682.0,0.00535951]
[1643827058846,0.02584499,2682.1,2682.0,0.00535956]
[1643827059344,0.02584499,2682.1,2681.4,0.74818924]
[1643827059643,0.02584499,2682.1,2681.9,0.004998]
[1643827059644,2.10042126,2682.1,2681.9,0.004998]
[1643827060044,0.02584499,2682.1,2681.9,0.004998]
[1643827060485,1.58143264,2682.0,2681.9,0.004998]
[1643827060686,1.58143264,2682.0,2681.9,0.00508088]
[1643827061886,1.58143264,2682.0,2681.8,0.00508092]
[1643827062887,1.58143264,2682.0,2681.4,0.74818924]
[1643827063086,1.58143264,2682.0,2681.8,0.00521465]
[1643827063489,0.01361276,2681.9,2681.8,0.00521465]
[1643827063691,1.5950454,2681.9,2681.8,0.00521465]
[1643827064336,1.5950454,2681.9,2681.7,0.00516276]
[1643827064538,1.58143264,2681.8,2681.7,0.00516276]
[1643827064740,0.01361276,2681.9,2681.7,0.19160276]
[1643827064939,0.01361276,2681.9,2681.8,5.6864]
[1643827065341,0.01361276,2681.9,2681.8,6.6864]
[1643827065539,0.01361276,2681.9,2681.8,7.02113589]
[1643827065739,0.01361276,2681.9,2681.8,6.83469589]
[1643827065740,1.594873,2681.9,2681.8,6.83469589]
[1643827065940,1.594873,2681.9,2681.8,7.02113589]
[1643827066139,1.594873,2681.9,2681.8,6.83473589]
[1643827066339,1.594873,2681.9,2681.8,3.24829589]
[1643827066939,1.594873,2681.9,2681.8,3.73473589]
[1643827067139,1.594873,2681.9,2681.8,2.73473589]
[1643827067344,1.594873,2681.9,2681.8,6.18473589]
[1643827069987,1.594873,2681.9,2681.8,3.73473589]
[1643827071445,1.594873,2681.9,2681.8,3.24829589]
[1643827071741,1.594873,2681.9,2681.8,0.56158726]
[1643827072138,1.594873,2681.9,2681.7,0.00480427]
[1643827072338,1.58126024,2681.8,2681.7,0.00480427]
[1643827072738,1.58126024,2681.8,2681.7,0.00960854]
[1643827072941,1.58126024,2681.8,2681.7,0.00480427]
[1643827073942,1.58126024,2681.8,2681.6,0.00480435]
[1643827074140,0.1864,2681.8,2681.6,0.00480435]
[1643827074341,1.58159181,2681.7,2681.6,0.00480435]
[1643827075197,1.58159181,2681.7,2681.5,0.00508181]
[1643827075585,1.58159181,2681.8,2681.5,0.00508181]
[1643827075784,1.58159181,2681.7,2681.5,0.00508181]
[1643827075985,1.58159181,2681.6,2681.5,0.00508181]
[1643827076185,1.58159181,2681.8,2681.4,1.74069244]
[1643827076485,1.58159181,2681.8,2681.5,0.00508181]
[1643827078387,1.58159181,2681.8,2681.4,1.74069244]
[1643827078388,0.01678604,2681.7,2681.4,1.74069244]
[1643827078587,1.58159181,2681.6,2681.4,1.74069244]
[1643827078786,1.58159181,2681.6,2681.5,2.4051455]
[1643827080043,1.58159181,2681.6,2681.5,2.4]
[1643827080544,0.01678604,2681.7,2681.5,4.81875]
[1643827081446,0.01678604,2681.7,2681.5,5.75104]
[1643827081844,0.01678604,2681.7,2681.5,6.28804]
[1643827082043,0.01678604,2681.7,2681.6,5.68644]
[1643827082248,0.01678604,2681.7,2681.6,6.68644]
[1643827082447,0.1864,2682.7,2681.7,5.5167]
[1643827082690,0.70505973,2682.9,2682.7,0.95181906]
[1643827083488,0.70505973,2682.9,2682.4,0.93201]
[1643827083687,0.70505973,2682.9,2682.7,0.00478403]
[1643827084288,0.1862,2683.1,2682.7,0.00478403]
[1643827084289,2.28614107,2682.8,2682.7,0.00478403]
[1643827084487,0.70505973,2682.8,2682.7,0.00478403]
[1643827085090,1.58108134,2682.8,2682.7,0.00478403]
[1643827085288,2.28679467,2682.8,2682.7,0.00478403]
[1643827085487,2.28673966,2682.8,2682.7,0.00478403]
[1643827085688,3.52667719,2682.8,2682.7,0.00478403]
[1643827085889,1.58108134,2682.8,2682.2,0.1868514]
[1643827086089,2.28683379,2682.7,2682.6,0.00504821]
[1643827086291,0.70575245,2682.7,2682.6,0.00504821]
[1643827086539,2.28683379,2682.8,2682.6,0.00504821]
[1643827086741,1.58108134,2682.7,2682.6,0.00504821]
[1643827086942,1.58108134,2682.7,2682.5,0.83067258]
[1643827087139,0.70575245,2682.8,2682.5,0.83067258]
[1643827087140,1.58108134,2682.6,2682.5,0.83067258]
[1643827087340,1.58108134,2682.6,2682.5,0.83572088]
[1643827087542,2.28683379,2682.9,2682.5,0.83572088]
[1643827087742,1.58108134,2682.8,2682.5,0.83572088]
[1643827088039,1.58108134,2682.7,2682.5,0.83572088]
[1643827088238,1.58108134,2682.6,2682.5,0.83572088]
[1643827088440,3.59073332,2683.3,2682.5,0.83067258]
[1643827088442,0.70575245,2682.7,2682.5,0.83067258]
[1643827088640,1.58108134,2682.6,2682.5,0.83067258]
[1643827088840,0.70575245,2682.8,2682.5,0.83067258]
[1643827089043,2.28683379,2682.8,2682.5,0.83067258]
[1643827089340,1.58108134,2682.7,2682.5,0.83067258]
[1643827089540,1.58108134,2682.6,2682.5,0.83067258]
[1643827089740,0.70575245,2682.8,2682.5,0.83570297]
[1643827089942,0.70575245,2682.9,2682.7,5.13644]
[1643827090196,1.58108134,2682.8,2682.7,5.13644]
[1643827090592,0.1862,2683.5,2682.7,5.13644]
[1643827090593,0.70575245,2682.9,2682.7,5.13644]
[1643827090791,0.70575245,2683.0,2682.7,5.14147026]
[1643827091090,2.28683379,2683.0,2682.7,5.44147026]
[1643827091292,1.58108134,2682.9,2682.7,5.44140026]
[1643827091491,0.70575245,2683.0,2682.8,4.23637]
[1643827091692,0.70575245,2683.0,2682.8,0.93187]
[1643827091891,0.70575245,2683.0,2682.7,0.93189]
[1643827092091,0.70575245,2683.0,2682.7,0.93692026]
[1643827092692,2.28666707,2682.9,2682.7,0.93692026]
[1643827092896,1.58091462,2682.8,2682.7,0.93692026]
[1643827093094,1.58091462,2682.8,2682.7,0.94256285]
[1643827093293,0.70575245,2682.9,2682.7,0.93753259]
[1643827093493,0.70575245,2682.9,2682.7,0.00564259]
[1643827093693,1.58091462,2682.8,2682.7,0.00564259]
[1643827094137,1.58091462,2682.8,2682.4,1.48638]
[1643827094340,1.58091462,2682.7,2682.6,0.00564268]
[1643827094536,1.58091462,2683.0,2682.6,0.00564268]
[1643827094736,1.58091462,2682.9,2682.6,0.00564268]
[1643827094937,1.58091462,2682.8,2682.6,0.00564268]
[1643827095137,1.58091462,2682.7,2682.6,0.00564268]
[1643827095340,1.58091462,2682.7,2682.4,1.48638]
[1643827095540,1.58091462,2682.6,2682.4,1.48638]
[1643827095740,1.58091462,2682.5,2682.4,1.48638]
[1643827096137,1.58091462,2683.0,2682.4,1.48638]
[1643827096338,0.1862,2683.3,2682.4,3.35043]
[1643827096339,1.58091462,2682.9,2682.4,3.35043]
[1643827096539,1.58091462,2682.8,2682.4,3.35043]
[1643827096738,1.58091462,2683.0,2682.4,3.35043]
[1643827096938,1.58091462,2682.7,2682.4,1.48638]
[1643827097137,1.58091462,2682.9,2682.4,1.48638]
[1643827097338,1.58091462,2682.6,2682.4,1.48638]
[1643827097538,1.58091462,2682.8,2682.4,1.48638]
[1643827097796,1.58091462,2682.7,2682.4,1.48638]
[1643827097994,0.89195245,2683.1,2682.5,0.00564277]
[1643827097995,1.58091462,2682.6,2682.5,0.00564277]
[1643827098392,1.58091462,2683.0,2682.5,0.00564277]
[1643827098594,0.06110485,2682.6,2682.5,0.00564277]
[1643827098793,1.64201947,2682.6,2682.5,0.00564277]
[1643827098992,1.64201947,2682.6,2682.4,1.0]
[1643827099192,1.58091462,2682.5,2682.4,1.0]
[1643827099393,1.58091462,2682.5,2682.1,0.1862]
[1643827099593,1.58091462,2682.5,2681.8,1.2457]
[1643827099797,1.58091462,2682.5,2681.7,3.69198]
[1643827099994,1.58091462,2682.5,2681.6,0.1864]